[Event "RUDAR XXII-IM 2024"]
[Site "Pozarevac"]
[Date "2024.02.14"]
[Round "8.3"]
[White "Sri Sai Baswanth P"]
[Black "Spasic, Petar"]
[Result "1/2-1/2"]
[ECO "A37"]
[WhiteElo "2096"]
[BlackElo "2343"]
[Annotator "TA"]
[PlyCount "163"]
[EventDate "2024.02.12"]
[EventType "tourn"]
[EventCountry "SRB"]
[SourceTitle "playchess.com"]
[Source "ChessBase"]
[SourceQuality "1"]
[TimeControl "5400+30"]

{[%evp 68,163,-45,-89,-96,-79,-82,-84,-84,-217,-186,-192,-204,-202,-118,-97,-103,-120,-110,-78,-51,-56,-67,-48,-24,-48,-47,-41,0,0,0,0,8,0,8,8,8,0,0,0,8,0,0,0,0,0,0,-8,0,0,0,-40,-12,-14,-16,-23,-31,-23,0,-8,0,0,0,0,0,0,0,0,0,0,0,0,0,0,0,0,0,0,0,0,0,0,0,0,0,0,0,0,0,0,0,0,0,0,0,0,0,0]} 1. c4 {[%emt 0:00:40]} c5 {[%emt 0:21:19]} 2. g3 {[%emt 0:00:46]} g6 {[%emt 0:01:24]} 3. Bg2 {[%emt 0:00:12]} Bg7 {[%emt 0:00:04]} 4. Nc3 {[%emt 0:00:16]} Nc6 {[%emt 0:00:12]} 5. Nf3 {[%emt 0:00:15]} a6 {[%emt 0:00:24]} 6. O-O {[%emt 0:06:16]} Rb8 {[%emt 0:00:11]} 7. e3 $1 {[%emt 0:07:12][%mdl 4] erfolgreicher als das alte 7.a4.} d6 {[%emt 0:00:17] A37: Englische Eröffnung (Symmetrische Variante).} 8. d4 {[%emt 0:00:24]} Nh6 $146 {[%emt 0:00:42]} ({Predecessor:} 8... Nf6 9. dxc5 dxc5 10. Qxd8+ Nxd8 11. e4 Ne6 12. h3 b5 13. cxb5 axb5 14. e5 Nd7 {0-1 Chos,A (2296)-Klukin,K (2390) Titled Tuesday intern op 22nd Aug Early blitz 2023 (2)}) 9. dxc5 {[%emt 0:01:21]} Bxc3 {[%emt 0:02:07]} 10. bxc3 {[%emt 0:00:31]} dxc5 {[%emt 0:00:04]} 11. Qxd8+ {[%emt 0:05:48]} Kxd8 {[%emt 0:01:06]} 12. e4 {[%emt 0:00:21]} Ng4 {[%emt 0:00:29]} 13. h3 {[%emt 0:00:16]} Nf6 {[%emt 0:00:08]} 14. Bf4 {[%emt 0:00:26]} Ra8 {[%emt 0:00:07]} 15. e5 {[%emt 0:01:41]} Ne4 {[%emt 0:07:15]} 16. Rfe1 {[%emt 0:08:08]} Nxc3 {[%emt 0:01:35]} 17. Ng5 {[%emt 0:02:35]} Ke8 {[%emt 0:04:36]} 18. Bd2 {[%emt 0:03:22]} Na4 {[%emt 0:00:53]} 19. Bd5 {[%emt 0:00:09]} Nd8 {[%emt 0:00:31]} 20. e6 {[%emt 0:09:39]} fxe6 {[%emt 0:05:36]} 21. Bxe6 {[%emt 0:00:41]} h6 {[%emt 0:05:52]} 22. Bxc8 {[%emt 0:00:07]} Rxc8 {[%emt 0:00:05]} 23. Ne4 {[%emt 0:00:06]} Rc6 {[%emt 0:00:29]} 24. Rab1 {[%emt 0:00:39]} Re6 {[%emt 0:04:51]} 25. Re3 {[%emt 0:01:17]} Rf8 {[%emt 0:00:40]} 26. Rbe1 {[%emt 0:00:19]} g5 {[%emt 0:03:31]} 27. Nd6+ {[%emt 0:00:57]} Kd7 {[%emt 0:01:33]} 28. Ne4 {[%emt 0:00:27]} Kc6 {[%emt 0:01:29]} 29. Rd3 {[%emt 0:05:41]} Nf7 {[%emt 0:00:32]} 30. f4 {[%emt 0:00:56]} gxf4 {[%emt 0:01:21]} 31. Bxf4 {[%emt 0:00:06]} Ne5 {[%emt 0:01:08]} 32. Ra3 {[%emt 0:01:18]} Nb6 {[%emt 0:00:43]} 33. Nd2 {[%emt 0:01:02]} Rd8 {[%emt 0:01:29]} 34. Rb3 {[%emt 0:03:29]} Rdd6 {[%emt 0:03:18]} 35. Reb1 {[%emt 0:13:03]} Nbd7 {[%emt 0:00:11]} 36. Kf1 {[%emt 0:05:48]} (36. Rxb7 $2 Rxd2 37. a4 (37. Bxd2 $2 Nf3+ 38. Kf2 Nxd2 $19) 37... Ra2 38. Bxe5 Rxe5 $19) 36... b6 {[%emt 0:04:11]} 37. Re1 {[%emt 0:00:25]} Rg6 {[%emt 0:02:31]} 38. Ne4 {[%emt 0:03:28] [#]} (38. a4 $17 {ist wohl besser.}) 38... Rd4 $1 $19 {[%emt 0:01:46]} 39. Nf2 {[%emt 0:04:31]} Nxc4 {[%emt 0:00:28]} 40. Rxe7 {[%emt 0:00:13] [#]} Rxf4 {[%emt 0:01:59]} (40... Nd2+ $1 $19 {[%mdl 512]} 41. Bxd2 Rxd2) 41. gxf4 $17 {[%emt 0:00:01]} Nd2+ {[%emt 0:00:10]} 42. Ke2 {[%emt 0:00:03]} Nxb3 {[%emt 0:00:06]} 43. axb3 {[%emt 0:00:02]} Rg3 {[%emt 0:00:33]} 44. Re6+ {[%emt 0:01:28]} Kd5 {[%emt 0:00:15]} 45. f5 $1 {[%emt 0:01:25]} Rg5 {[%emt 0:05:17]} 46. Re7 {[%emt 0:00:10]} (46. Rxh6 {vereinfacht} Rxf5 47. Ng4 Kd4 48. Kd2) 46... Ne5 {[%emt 0:00:41]} 47. Nd1 $1 {[%emt 0:00:51]} Nc6 {[%emt 0:05:23]} (47... Rxf5 48. Ne3+ Ke4 49. Nxf5 Kxf5 50. Rh7 $18) 48. Ne3+ {[%emt 0:00:57]} Kd6 {[%emt 0:00:09]} (48... Kd4 49. Re6 Ne5 50. f6 $16 (50. Rxh6 b5 $11) (50. Rxb6 Rg3 $14)) 49. Re6+ {[%emt 0:01:19]} Kc7 {[%emt 0:00:52]} 50. Kd3 {[%emt 0:01:01]} Nd4 {[%emt 0:00:54]} 51. Nd5+ {[%emt 0:00:57]} Kd8 {[%emt 0:00:42]} 52. Rd6+ {[%emt 0:02:30]} Ke8 {[%emt 0:00:12]} 53. Rxb6 {[%emt 0:01:27]} Nxf5 {[%emt 0:02:44]} 54. Kc4 {[%emt 0:00:55]} a5 {[%emt 0:02:42]} 55. Nf6+ {[%emt 0:01:06]} Kf7 {[%emt 0:01:42]} 56. Ne4 {[%emt 0:00:15]} Rh5 {[%emt 0:00:13]} 57. Rb7+ {[%emt 0:02:41]} Kf8 {[%emt 0:00:25]} 58. Rb8+ {[%emt 0:00:55]} Ke7 {[%emt 0:00:09]} 59. Re8+ {[%emt 0:04:14]} Kf7 {[%emt 0:00:33]} (59... Kxe8 $5 60. Nf6+ $8 Kf7 61. Nxh5 Kg6 62. Nf4+ Kg5 $11) 60. Ra8 {[%emt 0:00:38]} Rh4 {[%emt 0:00:29]} 61. Kd5 {[%emt 0:00:26]} Ne7+ {[%emt 0:00:48]} 62. Ke5 $1 {[%emt 0:00:05]} Nc6+ {[%emt 0:00:12]} 63. Kd6 {[%emt 0:01:03]} Rxe4 {[%emt 0:01:47]} 64. Kxc6 {[%emt 0:00:01]} Re3 {[%emt 0:00:17]} 65. Kxc5 {[%emt 0:00:30]} Rxb3 {[%emt 0:01:10]} 66. Rxa5 {[%emt 0:00:09]} Rxh3 {[%emt 0:00:05]} 67. Ra6 {[%emt 0:00:41]} Kg7 {[%emt 0:00:33]} 68. Kd4 {[%emt 0:00:05]} Rf3 {[%emt 0:00:06]} 69. Ke4 {[%emt 0:00:04]} Rf1 {[%emt 0:00:13]} 70. Ke3 {[%emt 0:00:36]} h5 {[%emt 0:00:12]} 71. Ra2 {[%emt 0:00:48]} Kh6 {[%emt 0:00:20]} 72. Rf2 {[%emt 0:00:09]} Rg1 {[%emt 0:00:24]} 73. Kf3 {[%emt 0:00:04]} h4 {[%emt 0:01:56]} 74. Rg2 {[%emt 0:00:04]} Ra1 {[%emt 0:00:06]} 75. Kg4 {[%emt 0:00:19]} Ra4+ {[%emt 0:00:07]} 76. Kh3 {[%emt 0:00:03]} Kh5 {[%emt 0:00:06]} 77. Rb2 {[%emt 0:00:07]} Ra3+ {[%emt 0:00:10]} 78. Kh2 {[%emt 0:00:05]} Ra4 {[%emt 0:00:29]} 79. Kh3 {[%emt 0:00:05]} Ra3+ {[%emt 0:00:07]} 80. Kh2 {[%emt 0:00:01]} Ra4 {[%emt 0:00:20]} 81. Kh3 {[%emt 0:00:01]} Ra3+ {[%emt 0:00:06]} 82. Kh2 {[%emt 0:00:03]} 1/2-1/2

[Event "RUDAR XXII-IM 2024"]
[Site "Pozarevac"]
[Date "2024.02.14"]
[Round "8.4"]
[White "Mesic, Ismet"]
[Black "Bryakin, Mikhail"]
[Result "1-0"]
[ECO "E21"]
[WhiteElo "2232"]
[BlackElo "2494"]
[Annotator "RC"]
[PlyCount "91"]
[EventDate "2024.02.12"]
[EventType "tourn"]
[EventCountry "SRB"]
[SourceTitle "playchess.com"]
[Source "ChessBase"]
[SourceQuality "1"]
[TimeControl "5400+30"]

1. d4 {[%emt 0:00:02]} e6 {[%emt 0:05:22]} 2. Nf3 {[%emt 0:00:15]} Nf6 {[%emt 0:00:33]} 3. c4 {[%emt 0:00:09]} b6 {[%emt 0:01:14]} 4. Nc3 {[%emt 0:00:34]} Bb4 {[%emt 0:00:53]} 5. Bd2 {[%emt 0:00:06]} Bb7 {[%emt 0:00:26]} 6. e3 {[%emt 0:00:05]} Bxc3 {[%emt 0:00:54]} 7. Bxc3 {[%emt 0:00:09]} Ne4 {[%emt 0:00:04]} 8. Rc1 {[%emt 0:00:06]} Nxc3 {[%emt 0:00:30]} 9. Rxc3 {[%emt 0:00:05]} d6 {[%emt 0:00:11]} 10. Be2 {[%emt 0:06:05]} Nd7 {[%emt 0:00:27]} 11. O-O {[%emt 0:00:06]} O-O {[%emt 0:00:28]} 12. Nd2 {[%emt 0:02:35]} a5 {[%emt 0:03:14]} 13. Bf3 {[%emt 0:00:45]} Qc8 {[%emt 0:00:26]} 14. Bxb7 {[%emt 0:00:28]} Qxb7 {[%emt 0:00:11]} 15. Qf3 {[%emt 0:01:33]} Qxf3 {[%emt 0:00:43]} 16. Nxf3 {[%emt 0:00:04]} f6 {[%emt 0:01:18]} 17. Rcc1 {[%emt 0:06:17]} a4 {[%emt 0:01:35]} 18. Nd2 {[%emt 0:01:06]} Kf7 {[%emt 0:00:18]} 19. Nb1 {[%emt 0:01:59]} Ra5 {[%emt 0:00:44]} 20. Nc3 {[%emt 0:02:50]} c6 {[%emt 0:01:34]} 21. Rfd1 {[%emt 0:02:23]} Ke7 {[%emt 0:00:26]} 22. Rc2 {[%emt 0:09:50]} h5 {[%emt 0:01:23]} 23. f3 {[%emt 0:09:17]} h4 {[%emt 0:01:02]} 24. g3 {[%emt 0:05:21]} hxg3 {[%emt 0:00:34]} 25. hxg3 {[%emt 0:00:06]} Rh8 {[%emt 0:00:12]} 26. Rh2 {[%emt 0:00:48]} Rxh2 {[%emt 0:00:08]} 27. Kxh2 {[%emt 0:00:01]} b5 {[%emt 0:01:27]} 28. cxb5 {[%emt 0:05:47]} cxb5 {[%emt 0:00:02]} 29. Kg2 {[%emt 0:05:00]} Nb6 {[%emt 0:00:42]} 30. Kf2 {[%emt 0:01:57]} b4 {[%emt 0:01:01]} 31. Ne2 {[%emt 0:02:55]} Rh5 {[%emt 0:02:38]} 32. b3 {[%emt 0:04:36]} Rh2+ {[%emt 0:03:18]} 33. Ke1 {[%emt 0:00:24]} a3 {[%emt 0:13:23]} 34. e4 {[%emt 0:01:39]} d5 {[%emt 0:10:57]} 35. Rc1 {[%emt 0:04:50]} e5 {[%emt 0:29:24]} 36. dxe5 {[%emt 0:14:00]} Nd7 {[%emt 0:05:50]} 37. exf6+ {[%emt 0:04:55]} gxf6 {[%emt 0:00:26]} 38. exd5 {[%emt 0:01:52]} Ne5 {[%emt 0:00:15]} 39. Kd2 {[%emt 0:00:16]} Nxf3+ {[%emt 0:00:09]} 40. Ke3 {[%emt 0:00:01]} Ne5 {[%emt 0:00:01]} 41. Rc7+ {[%emt 0:02:48]} Kd6 {[%emt 0:00:00]} 42. Rb7 {[%emt 0:00:05]} Kc5 {[%emt 0:00:19]} 43. d6 {[%emt 0:00:11]} Rh1 {[%emt 0:00:51]} 44. d7 {[%emt 0:00:05]} Rd1 {[%emt 0:00:19]} 45. Nf4 {[%emt 0:01:11]} Rd6 {[%emt 0:08:09]} 46. d8=Q {[%emt 0:07:53]} 1-0

[Event "RUDAR XXII-IM 2024"]
[Site "Pozarevac"]
[Date "2024.02.14"]
[Round "8.5"]
[White "Potluri Saye Srreezza"]
[Black "Ninov, Nikolai"]
[Result "0-1"]
[ECO "E32"]
[WhiteElo "1983"]
[BlackElo "2413"]
[Annotator "TA"]
[PlyCount "107"]
[EventDate "2024.02.12"]
[EventType "tourn"]
[EventCountry "SRB"]
[SourceTitle "playchess.com"]
[Source "ChessBase"]
[SourceQuality "1"]
[TimeControl "5400+30"]

{[%evp 10,107,41,49,44,16,7,5,21,0,0,0,0,-12,-23,-103,-87,-95,-54,-52,-19,-58,-31,-39,-49,-38,-37,-43,-50,-41,-45,-62,-20,-58,-52,-140,-149,-150,-150,-146,-108,-113,-100,-141,-147,-160,-159,-162,-117,-120,-115,-116,-120,-110,-129,-187,-185,-185,-194,-206,-209,-216,-210,-245,-207,-260,-234,-254,-247,-247,-234,-246,-201,-202,-193,-292,-229,-374,-371,-388,-386,-350,-373,-388,-388,-338,-307,-572,-500,-515,-425,-575,-577,-1142,-1062,-1130,-992,-1275,-1266,-29991]} 1. d4 {[%emt 0:02:32]} Nf6 {[%emt 0:00:20]} 2. c4 {[%emt 0:00:06]} e6 {[%emt 0:00:20]} 3. Nc3 {[%emt 0:00:07]} Bb4 {[%emt 0:00:16]} 4. Qc2 {[%emt 0:00:05]} O-O {[%emt 0:01:26]} 5. e4 {[%emt 0:00:06]} Bxc3+ {[%emt 0:07:26]} 6. bxc3 {[%emt 0:00:12]} d6 {[%emt 0:00:07]} 7. e5 {[%emt 0:15:12]} dxe5 {[%emt 0:06:47]} 8. dxe5 {[%emt 0:00:39]} Nfd7 {[%emt 0:00:34] The position is equal.} 9. Nf3 {[%emt 0:00:42]} (9. f4 {keeps more tension.} Nc5 10. Ba3 Qe7 11. Nf3) 9... h6 {[%emt 0:02:00] Against Ng5} 10. Ba3 {[%emt 0:29:11]} c5 $1 {[%emt 0:02:51]} 11. Bc1 {[%emt 0:04:43]} Nc6 {[%emt 0:06:12]} 12. Qe4 {[%emt 0:01:38]} (12. Bf4 $11) 12... f5 {[%emt 0:07:03]} 13. exf6 {[%emt 0:00:51]} Qxf6 {[%emt 0:00:17]} 14. Bd2 {[%emt 0:00:54]} Nde5 {[%emt 0:02:12]} 15. Be2 {[%emt 0:01:27]} (15. Nxe5 {seems wilder.} Qxe5 16. Bd3 b6 17. O-O-O) 15... Qg6 {[%emt 0:08:05]} 16. Qxg6 {[%emt 0:01:33]} Nxg6 {[%emt 0:00:10]} 17. Bd3 {[%emt 0:04:57]} Nge5 {[%emt 0:10:46]} 18. Nxe5 {[%emt 0:00:21]} Nxe5 {[%emt 0:00:11]} 19. Be2 {[%emt 0:00:10]} b6 {[%emt 0:07:21]} 20. f4 {[%emt 0:01:24]} Nf7 {[%emt 0:04:25] Black is more active.} 21. Bf3 {[%emt 0:12:29]} Rb8 {[%emt 0:00:18]} 22. f5 {[%emt 0:00:54]} Ne5 $17 {[%emt 0:01:26]} (22... exf5 23. Bf4 Re8+ 24. Kf1 $11 (24. Kf2 Ne5 $15)) 23. O-O {[%emt 0:06:56]} Nxf3+ {[%emt 0:02:41]} ({Stronger than} 23... exf5 24. Bd5+ Nf7 25. Bf4 $16) (23... Nxc4 $6 24. Bf4 e5 25. Bd5+ Kh8 26. Bxh6 gxh6 27. Bxc4 $11) 24. Rxf3 {[%emt 0:00:52]} Rxf5 {[%emt 0:00:23]} 25. Bf4 {[%emt 0:09:50]} Ra8 {[%emt 0:10:18]} 26. Rd1 {[%emt 0:03:49]} Ba6 {[%emt 0:05:39]} 27. Rd7 {[%emt 0:00:31]} Bxc4 {[%emt 0:00:20]} 28. a3 {[%emt 0:00:22]} Bd5 {[%emt 0:06:03]} 29. Rf2 {[%emt 0:00:47]} Raf8 {[%emt 0:00:22]} 30. Bg3 {[%emt 0:00:31]} Rxf2 {[%emt 0:00:36]} 31. Bxf2 {[%emt 0:00:04][%mdl 4096] Endgame. KRB-KRB} Rf7 {[%emt 0:00:08]} 32. Rd8+ {[%emt 0:02:00]} (32. Rxf7 $17 Kxf7 33. Bg3) 32... Kh7 $19 {[%emt 0:00:22]} 33. Bg3 {[%emt 0:00:05]} Kg6 {[%emt 0:00:38]} 34. Rc8 {[%emt 0:00:20]} Kf5 {[%emt 0:00:50]} 35. Rc7 {[%emt 0:00:34]} e5 {[%emt 0:02:08]} 36. Rc8 {[%emt 0:00:39]} Be6 {[%emt 0:00:31]} 37. Ra8 {[%emt 0:00:31]} Rd7 {[%emt 0:01:21]} 38. Rf8+ {[%emt 0:00:46]} Bf7 {[%emt 0:00:25]} 39. Kf2 {[%emt 0:00:09]} Ke6 {[%emt 0:00:16]} 40. Ra8 {[%emt 0:00:45]} Bg6 {[%emt 0:00:44]} 41. Ke2 {[%emt 0:00:34]} Bh5+ {[%emt 0:00:16]} 42. Ke1 {[%emt 0:00:35]} (42. Ke3 {only move.}) 42... Kd5 {[%emt 0:01:42]} 43. Kd2 {[%emt 0:00:33]} (43. Kf2 {keeps fighting.}) 43... Kc4+ {[%emt 0:00:21]} 44. Ke3 {[%emt 0:00:10]} Kxc3 {[%emt 0:00:49]} 45. Bxe5+ {[%emt 0:00:06]} Kb3 {[%emt 0:00:06]} 46. Rg8 {[%emt 0:01:16]} Re7 {[%emt 0:00:44]} (46... Kxa3 47. Rxg7 Bf7 48. h4) 47. Ke4 {[%emt 0:00:29]} g5 {[%emt 0:00:31][%cal Oc5c4] [#] Strongly threatening ...c4!} 48. Rh8 $2 {[%emt 0:00:21]} (48. Rg7 Bf7 (48... Rxg7 $2 49. Bxg7 Kxa3 50. Bf8 $19) 49. Kf5 Be6+ (49... Kxa3 50. Kf6 $19) 50. Ke4 Rxg7 51. Bxg7) 48... Bg6+ {[%emt 0:00:44] Black is clearly winning.} 49. Kd5 {[%emt 0:00:06]} Bf7+ {[%emt 0:00:28]} 50. Ke4 {[%emt 0:00:17]} c4 {[%emt 0:01:25]} 51. Rxh6 {[%emt 0:00:12]} c3 {[%emt 0:01:08]} 52. Rh3 {[%emt 0:00:30]} Kb2 {[%emt 0:00:33]} ({Not} 52... Kxa3 53. Rxc3+ Kb4 54. Rg3 $15) 53. Re3 {[%emt 0:01:22] [#]} Rxe5+ $1 {[%emt 0:00:27][%mdl 512]} 54. Kd4 {[%emt 0:01:15] Weighted Error Value: White=0.48/Black=0.13 (very precise) .  Mistake:       	White=6     	---        Inaccurate:     	White=6     	Black=4      OK:         	White=12    	Black=21     Best:        	White=2     	Black=5      Strong:       	---       	Black=1} (54. Kxe5 c2) 0-1

[Event "RUDAR XXII-IM 2024"]
[Site "Pozarevac"]
[Date "2024.02.15"]
[Round "9.1"]
[White "Ninov, Nikolai"]
[Black "Ilincic, Zlatko"]
[Result "1/2-1/2"]
[ECO "C42"]
[WhiteElo "2413"]
[BlackElo "2291"]
[Annotator "TA"]
[PlyCount "24"]
[EventDate "2024.02.12"]
[EventType "tourn"]
[EventCountry "SRB"]
[SourceTitle "playchess.com"]
[Source "ChessBase"]
[SourceQuality "1"]
[TimeControl "5400+30"]

{[%evp 9,24,23,21,10,16,4,8,6,12,0,0,0,-4,-20,-11,-27,-14]} 1. e4 {[%emt 0:00:07]} e5 {[%emt 0:00:10]} 2. Nf3 {[%emt 0:00:14]} Nf6 {[%emt 0:00:13]} 3. Nxe5 {[%emt 0:00:23][%cal Bf3e5,Be5d3,Bd3f4][%mdl 32]} d6 {[%emt 0:00:07]} 4. Nd3 {[%emt 0:00:48]} Nxe4 {[%emt 0:00:12]} 5. Qe2 {[%emt 0:00:10]} Qe7 $1 {[%emt 0:00:09]} 6. Nf4 {[%emt 0:00:18]} c6 {[%emt 0:00:14] Prevents Nd5} 7. d3 {[%emt 0:00:24]} Nf6 {[%emt 0:00:17]} 8. Nc3 {[%emt 0:00:46] The position is equal.} d5 {[%emt 0:00:21]} 9. Bd2 {[%emt 0:00:45]} Nbd7 {[%emt 0:00:43]} 10. O-O-O {[%emt 0:00:40]} Qxe2 {[%emt 0:00:11]} 11. Bxe2 {[%emt 0:00:12]} Bd6 {[%emt 0:00:10]} 12. Rhe1 {[%emt 0:00:48]} O-O {[%emt 0:00:08] A rather calm draw.   Weighted Error Value: White=0.10 (very precise) /Black=0.02 (flawless) .  OK:         	White=1     	Black=4} 1/2-1/2

[Event "RUDAR XXII-IM 2024"]
[Site "Pozarevac"]
[Date "2024.02.15"]
[Round "9.3"]
[White "Spasic, Petar"]
[Black "Mesic, Ismet"]
[Result "1/2-1/2"]
[ECO "E09"]
[WhiteElo "2343"]
[BlackElo "2232"]
[Annotator "TA"]
[PlyCount "50"]
[EventDate "2024.02.12"]
[EventType "tourn"]
[EventCountry "SRB"]
[SourceTitle "playchess.com"]
[Source "ChessBase"]
[SourceQuality "1"]
[TimeControl "5400+30"]

{[%evp 21,50,-1,0,-18,4,0,25,-22,30,30,21,22,12,2,20,19,19,12,34,-29,-2,-61,-78,-125,-129,-156,5,-73,0,-121,1]} 1. d4 {[%emt 0:24:22]} Nf6 {[%emt 0:00:56]} 2. Nf3 {[%emt 0:00:24]} d5 {[%emt 0:00:03]} 3. c4 {[%emt 0:00:13]} e6 {[%emt 0:00:04]} 4. g3 {[%emt 0:00:46]} Be7 {[%emt 0:00:05]} 5. Bg2 {[%emt 0:00:06]} O-O {[%emt 0:00:05]} 6. O-O {[%emt 0:00:36]} c6 {[%emt 0:00:22]} 7. Qc2 {[%emt 0:02:21]} b6 {[%emt 0:00:16]} 8. Nbd2 {[%emt 0:03:33]} Bb7 {[%emt 0:00:16]} 9. b3 {[%emt 0:00:07]} c5 {[%emt 0:02:08]} 10. Bb2 {[%emt 0:04:25]} Nbd7 {[%emt 0:07:47]} 11. Rad1 {[%emt 0:01:10]} Rc8 {[%emt 1:23:58]} 12. Qb1 {[%emt 0:02:10]} Qc7 {[%emt 0:00:00]} 13. cxd5 {[%emt 0:12:24]} exd5 {[%emt 0:00:00]} 14. e3 {[%emt 0:06:54]} (14. Rc1 {ist überlegen.}) 14... Bd6 {[%emt 0:00:00]} (14... c4 $142) 15. Rc1 {[%emt 0:01:04]} Rfe8 {[%emt 0:00:00]} 16. Bh3 {[%emt 0:01:01]} (16. Ng5 {sieht schärfer aus.} a5 17. a4 Qd8 18. Rfd1) 16... Rcd8 {[%emt 0:00:00]} 17. Rfd1 {[%emt 0:08:23]} Qb8 {[%emt 0:00:00]} 18. Bf1 {[%emt 0:13:54]} (18. Ng5 {mit weiteren Verwicklungen.} h6 19. dxc5 bxc5 20. Bxd7 Rxd7 21. Bxf6 hxg5 22. Qf5) 18... Qa8 {[%emt 0:00:00][%cal Oc5c4]} 19. Qa1 {[%emt 0:00:38]} c4 {[%emt 0:00:00]} 20. bxc4 {[%emt 0:02:53]} (20. a4 $14) 20... dxc4 $11 {[%emt 0:00:00]} 21. Nxc4 {[%emt 0:00:08]} ({Günstiger ist} 21. d5 $11) 21... Bxg3 $15 {[%emt 0:00:00]} 22. fxg3 {[%emt 0:04:06]} (22. hxg3 $142 Bxf3 23. d5 Bxd1 24. Rxd1) 22... Bxf3 $17 {[%emt 0:00:00]} 23. Re1 {[%emt 0:00:03]} Nd5 $2 {[%emt 0:00:00] [#]} (23... Ne4 $17 {Und ...b5 würde nun gewinnen.} 24. Ba3 Qd5) 24. Kf2 {[%emt 0:01:56]} (24. Ba3 $11 {hält das Gleichgewicht.}) 24... N5f6 {[%emt 0:00:00] Hervorragende Reitkunst.} (24... Be4 $142 25. Nd6 Re6) 25. Kg1 {[%emt 0:01:28]} Nd5 {[%emt 0:00:00] Gewichteter Fehlerwert: Weiß=0.30/Schwarz=0.41.  Fehler:       	Weiß=5     	Schwarz=4     Ungenau:       	---       	Schwarz=1     OK:         	Weiß=2     	Schwarz=1     Bester:       	Weiß=1     	Schwarz=2} ({Vorzuziehen ist} 25... Ne4 $17 26. Ba3 Qd5) 1/2-1/2

[Event "RUDAR XXII-IM 2024"]
[Site "Pozarevac"]
[Date "2024.02.15"]
[Round "9.4"]
[White "Petrovic, Aleksa"]
[Black "Sri Sai Baswanth P"]
[Result "0-1"]
[ECO "D02"]
[WhiteElo "2248"]
[BlackElo "2096"]
[Annotator "TA"]
[PlyCount "70"]
[EventDate "2024.02.12"]
[EventType "tourn"]
[EventCountry "SRB"]
[SourceTitle "playchess.com"]
[Source "ChessBase"]
[SourceQuality "1"]
[TimeControl "5400+30"]

{[%evp 9,70,5,31,21,40,41,36,30,28,43,15,16,31,17,52,37,32,27,32,4,13,14,0,0,8,8,71,18,80,71,60,62,85,121,144,41,60,52,95,-3,-2,-43,-19,-91,-80,-91,-97,-104,-82,-89,-61,-145,-131,-141,-143,-179,-183,-186,-187,-244,-241,-245,-239]} 1. d4 {[%emt 0:13:38]} Nf6 {[%emt 0:00:10]} 2. Nf3 {[%emt 0:00:24][%cal Bg1f3,Bf3d4,Bd4b3][%mdl 32]} d5 {[%emt 0:00:07]} 3. g3 {[%emt 0:01:08]} c5 {[%emt 0:00:32]} 4. Bg2 {[%emt 0:01:07]} cxd4 {[%emt 0:00:07]} 5. O-O {[%emt 0:00:34]} h6 {[%emt 0:00:18]} 6. b3 {[%emt 0:05:17][%cal Oc1b2]} g6 {[%emt 0:00:29]} 7. Nxd4 {[%emt 0:02:40]} Bg7 {[%emt 0:00:19]} 8. c4 {[%emt 0:02:06] White is slightly better.} dxc4 {[%emt 0:01:04]} 9. bxc4 {[%emt 0:02:26]} O-O {[%emt 0:00:20]} 10. Bb2 {[%emt 0:02:05]} Qb6 {[%emt 0:00:16]} 11. Qc1 {[%emt 0:05:35]} Na6 {[%emt 0:05:33]} 12. Nb3 {[%emt 0:06:29]} Be6 {[%emt 0:08:14]} 13. Bd4 {[%emt 0:04:30]} Qc7 {[%emt 0:00:30]} 14. Na3 {[%emt 0:02:13]} Rad8 {[%emt 0:02:38]} 15. Qc3 {[%emt 0:07:26][%cal Oa1c1]} b6 {[%emt 0:04:22]} 16. Rfd1 {[%emt 0:03:45]} Rc8 {[%emt 0:05:37]} 17. Qb2 {[%emt 0:06:23] next Nb5 is good for White.} Rfd8 {[%emt 0:02:16]} (17... Qb8 $11) 18. Be5 {[%emt 0:02:45]} (18. Nb5 $16 Qd7 19. Nc3 Rxc4 20. Bxf6 Bxf6 21. Rxd7 Rxd7 22. Rc1) 18... Ne8 {[%emt 0:05:52]} (18... Rxd1+ $1 $11 19. Rxd1 Rd8) 19. Bxg7 $16 {[%emt 0:00:24]} Nxg7 {[%emt 0:00:10]} 20. Nb5 {[%emt 0:05:52]} Rxd1+ {[%emt 0:05:52]} 21. Rxd1 {[%emt 0:00:08]} Qxc4 {[%emt 0:00:16]} 22. Nxa7 {[%emt 0:02:51]} ({Only move:} 22. Bb7 $1 $16 {[%cal Rb7a6]} Rc5 (22... Qxb5 $2 {is the wrong capture.} 23. Bxc8 Bxc8 24. Rd8+ Ne8 25. Rxc8 $18) 23. Nxc5 (23. Bxa6 Rxb5 24. Qd2 Nf5 $18) (23. Nxa7 Qc2 $11) 23... Nxc5 24. Bg2) 22... Qc2 {[%emt 0:01:48]} 23. Qa1 {[%emt 0:01:52] Hoping for Rc1.} Re8 {[%emt 0:07:54]} 24. Rc1 {[%emt 0:05:09]} (24. Nd4 $16 Qc5 25. Qb2) 24... Qxe2 $11 {[%emt 0:08:40]} 25. Bf1 {[%emt 0:01:22]} Qe4 {[%emt 0:00:09]} 26. Qd4 {[%emt 0:04:52] [#] Prevents Bd5.} (26. Bxa6 $2 {perishes.} Bd5 27. Kf1 Ra8 $19) (26. Bg2 $11 {remains equal.} Qf5 27. Nd4) 26... Nc5 $1 $17 {[%emt 0:01:10]} 27. Qxe4 {[%emt 0:00:47]} (27. Nb5 Qxd4) 27... Nxe4 {[%emt 0:00:01]} 28. Rc7 {[%emt 0:02:35]} Rd8 {[%emt 0:02:42]} 29. f3 {[%emt 0:02:12]} Ng5 {[%emt 0:01:35]} 30. Be2 {[%emt 0:00:46]} ({Better is} 30. Nc6 $1 $15 Ra8 (30... Nxf3+ 31. Kf2 $14) 31. Nbd4) 30... Bxb3 $1 {[%emt 0:06:05] Black is clearly better.} 31. axb3 {[%emt 0:00:06][%cal Oa7c6] [#]} Rd2 $1 {[%emt 0:00:04]} 32. Kf2 {[%emt 0:02:10][%cal Oa7c6]} Nf5 {[%emt 0:00:04]} 33. Nc6 {[%emt 0:00:32] [#]} Ne6 $1 {[%emt 0:02:29]} 34. Rc8+ {[%emt 0:00:52]} (34. Ra7 {is a better defense.}) 34... Kg7 $19 {[%emt 0:00:06]} 35. Ke1 {[%emt 0:00:34]} Rb2 {[%emt 0:00:26] Weighted Error Value: White=0.23 (precise) /Black=0.16 (very precise) .  Mistake:       	White=6     	Black=2      Inaccurate:     	White=2     	Black=3      OK:         	White=10    	Black=11     Best:        	White=1     	Black=1      Strong:       	---       	Black=1} 0-1